Workbook

Sheet Sheet1
A1: 三穗县事业单位2023年公开招聘工作人员面试成绩暨入围体检人员名单
A2: 姓名 | B2: 报考单位 | C2: 报考职位 | D2: 职位代码 | E2: 笔试成绩 | G2: 面试成绩 | I2: 综合成绩 | J2: 排名
E3: 笔试成绩 | F3: 占综合成绩50% | G3: 面试成绩 | H3: 占综合成绩50%
A4: 崔岳天 | B4: 三穗县林长制管理服务中心 | C4: 专业技术岗位 | D4: 08001 | E4: 71.09 | F4: =E4*0.5 -> 35.55 | G4: 77.80 | H4: =G4*0.5 -> 38.9 | I4: =H4+F4 -> 74.45 | J4: 入围体检
A5: 田海涛 | B5: 三穗县林长制管理服务中心 | C5: 专业技术岗位 | D5: 08001 | E5: 72.44 | F5: =E5*0.5 -> 36.22 | G5: 74.20 | H5: =G5*0.5 -> 37.1 | I5: =H5+F5 -> 73.32
A6: 罗沁 | B6: 三穗县林长制管理服务中心 | C6: 专业技术岗位 | D6: 08001 | E6: 69.24 | F6: =E6*0.5 -> 34.62 | G6: 71.00 | H6: =G6*0.5 -> 35.5 | I6: =H6+F6 -> 70.12
A7: 邹丹妮 | B7: 三穗县规划信息技术中心 | C7: 专业技术岗位 | D7: 08002 | E7: 71.71 | F7: 35.86 | G7: 79.40 | H7: 39.7 | I7: 75.56 | J7: 入围体检
A8: 罗长林 | B8: 三穗县规划信息技术中心 | C8: 专业技术岗位 | D8: 08002 | E8: 70.44 | F8: 35.22 | G8: 74.60 | H8: 37.3 | I8: 72.52
A9: 杨徐 | B9: 三穗县规划信息技术中心 | C9: 专业技术岗位 | D9: 08002 | E9: 67.65 | F9: 33.83 | G9: 75.40 | H9: 37.7 | I9: 71.53
A10: 袁钰晔 | B10: 三穗县文笔街道应急救援管理站 | C10: 管理岗位 | D10: 08003 | E10: 69.48 | F10: 34.74 | G10: 83 | H10: 41.5 | I10: 76.24 | J10: 入围体检
A11: 吴柏志 | B11: 三穗县文笔街道应急救援管理站 | C11: 管理岗位 | D11: 08003 | E11: 72.17 | F11: 36.09 | G11: 78 | H11: 39 | I11: 75.09
A12: 杨寰 | B12: 三穗县文笔街道应急救援管理站 | C12: 管理岗位 | D12: 08003 | E12: 72.85 | F12: 36.43 | G12: 76 | H12: 38 | I12: 74.43
A13: 吴天慧 | B13: 三穗县武笔街道应急救援管理站 | C13: 管理岗位 | D13: 08004 | E13: 75.4 | F13: 37.70 | G13: 84.6 | H13: 42.3 | I13: 80.00 | J13: 入围体检
A14: 朱志雄 | B14: 三穗县武笔街道应急救援管理站 | C14: 管理岗位 | D14: 08004 | E14: 77.36 | F14: 38.68 | G14: 76 | H14: 38 | I14: 76.68
A15: 舒雨煊 | B15: 三穗县武笔街道应急救援管理站 | C15: 管理岗位 | D15: 08004 | E15: 74.72 | F15: 37.36 | G15: 78.6 | H15: 39.3 | I15: 76.66
A16: 万秀谦 | B16: 三穗县滚马乡退役军人服务站 | C16: 管理岗位 | D16: 08005 | E16: 73.43 | F16: 36.72 | G16: 74.2 | H16: 37.1 | I16: 73.82 | J16: 入围体检
A17: 衮婷婷 | B17: 三穗县滚马乡退役军人服务站 | C17: 管理岗位 | D17: 08005 | E17: 70.28 | F17: 35.14 | G17: 75.8 | H17: 37.9 | I17: 73.04
A18: 谌彬 | B18: 三穗县滚马乡退役军人服务站 | C18: 管理岗位 | D18: 08005 | E18: 70.28 | F18: 35.14 | G18: 70.2 | H18: 35.1 | I18: 70.24
A19: 杨彪 | B19: 三穗县滚马乡林业站 | C19: 专业技术岗位 | D19: 08006 | E19: 70.38 | F19: 35.19 | G19: 74.4 | H19: 37.2 | I19: 72.39 | J19: 入围体检
A20: 吴建娟 | B20: 三穗县滚马乡林业站 | C20: 专业技术岗位 | D20: 08006 | E20: 69.21 | F20: 34.61 | G20: 74.4 | H20: 37.2 | I20: 71.81
A21: 杨政友 | B21: 三穗县滚马乡林业站 | C21: 专业技术岗位 | D21: 08006 | E21: 68.41 | F21: 34.21 | G21: 74.8 | H21: 37.4 | I21: 71.61
A22: 潘俊光 | B22: 三穗县良上镇财政所 | C22: 管理岗位 | D22: 08007 | E22: 71.75 | F22: 35.88 | G22: 75 | H22: 37.5 | I22: 73.38 | J22: 入围体检
A23: 刘艳 | B23: 三穗县良上镇财政所 | C23: 管理岗位 | D23: 08007 | E23: 67.33 | F23: 33.67 | G23: 76 | H23: 38 | I23: 71.67
A24: 吴培鑫 | B24: 三穗县良上镇财政所 | C24: 管理岗位 | D24: 08007 | E24: 67.24 | F24: 33.62 | G24: 71.4 | H24: 35.7 | I24: 69.32
A25: 王爱凤 | B25: 三穗县良上镇财政所 | C25: 管理岗位 | D25: 08008 | E25: 77.42 | F25: 38.71 | G25: 79 | H25: 39.5 | I25: 78.21 | J25: 入围体检
A26: 吴澳玥 | B26: 三穗县良上镇财政所 | C26: 管理岗位 | D26: 08008 | E26: 76.2 | F26: 38.10 | G26: 79.4 | H26: 39.7 | I26: 77.80
A27: 覃会淋 | B27: 三穗县良上镇财政所 | C27: 管理岗位 | D27: 08008 | E27: 77.04 | F27: 38.52 | G27: 77.6 | H27: 38.8 | I27: 77.32
A28: 周明宇 | B28: 三穗县良上镇国土资源和规划建设环保中心 | C28: 专业技术岗位 | D28: 08009 | E28: 69.78 | F28: 34.89 | G28: 78 | H28: 39 | I28: 73.89 | J28: 入围体检
A29: 杨政鑫 | B29: 三穗县良上镇国土资源和规划建设环保中心 | C29: 专业技术岗位 | D29: 08009 | E29: 68.45 | F29: 34.23 | G29: 78.4 | H29: 39.2 | I29: 73.43
A30: 王文浪 | B30: 三穗县良上镇国土资源和规划建设环保中心 | C30: 专业技术岗位 | D30: 08009 | E30: 67.65 | F30: 33.83 | G30: 77.4 | H30: 38.7 | I30: 72.53
A31: 姚金岑 | B31: 三穗县台烈镇乡村振兴工作站 | C31: 管理岗位 | D31: 08010 | E31: 75.88 | F31: 37.94 | G31: 81.6 | H31: 40.8 | I31: 78.74 | J31: 入围体检
A32: 万沛鑫 | B32: 三穗县台烈镇乡村振兴工作站 | C32: 管理岗位 | D32: 08010 | E32: 73.55 | F32: 36.78 | G32: 81.2 | H32: 40.6 | I32: 77.38
A33: 刘兆纬 | B33: 三穗县台烈镇乡村振兴工作站 | C33: 管理岗位 | D33: 08010 | E33: 73.43 | F33: 36.72 | G33: 78.8 | H33: 39.4 | I33: 76.12
A34: 吴配武 | B34: 三穗县雪洞镇林业站 | C34: 专业技术岗位 | D34: 08011 | E34: 72.37 | F34: 36.19 | G34: 80.6 | H34: 40.3 | I34: 76.49 | J34: 入围体检
A35: 吴远弘 | B35: 三穗县雪洞镇林业站 | C35: 专业技术岗位 | D35: 08011 | E35: 71.33 | F35: 35.67 | G35: 80 | H35: 40 | I35: 75.67
A36: 伍洪进 | B36: 三穗县雪洞镇林业站 | C36: 专业技术岗位 | D36: 08011 | E36: 74.28 | F36: 37.14 | G36: 66.6 | H36: 33.3 | I36: 70.44
A37: 杨铖香 | B37: 三穗县雪洞镇残疾人联合会 | C37: 管理岗位 | D37: 08012 | E37: 72.04 | F37: =E37*0.5 -> 36.02 | G37: 80 | H37: =G37*0.5 -> 40 | I37: =H37+F37 -> 76.02 | J37: 入围体检
A38: 何飞 | B38: 三穗县雪洞镇残疾人联合会 | C38: 管理岗位 | D38: 08012 | E38: 67.75 | F38: 33.88 | G38: 77.2 | H38: 38.6 | I38: 72.48
A39: 李玉 | B39: 三穗县雪洞镇残疾人联合会 | C39: 管理岗位 | D39: 08012 | E39: 65.54 | F39: 32.77 | G39: 缺考 | H39: 缺考 | I39: 32.77
A40: 龙昌盛 | B40: 三穗县雪洞镇科技宣教文化信息服务中心 | C40: 管理岗位 | D40: 08013 | E40: 69.73 | F40: 34.87 | G40: 81.6 | H40: =G40*0.5 -> 40.8 | I40: =H40+F40 -> 75.67 | J40: 入围体检
A41: 杜丹丹 | B41: 三穗县雪洞镇科技宣教文化信息服务中心 | C41: 管理岗位 | D41: 08013 | E41: 69.78 | F41: 34.89 | G41: 78 | H41: 39 | I41: 73.89
A42: 尹书华 | B42: 三穗县雪洞镇科技宣教文化信息服务中心 | C42: 管理岗位 | D42: 08013 | E42: 70.49 | F42: 35.25 | G42: 77 | H42: 38.5 | I42: 73.75
A43: 郑永鑫 | B43: 三穗县长吉镇人力资源和社会保障服务中心 | C43: 管理岗位 | D43: 08014 | E43: 59.2 | F43: 29.60 | G43: 80.2 | H43: 40.1 | I43: 69.70 | J43: 入围体检
A44: 李春明 | B44: 三穗县长吉镇人力资源和社会保障服务中心 | C44: 管理岗位 | D44: 08014 | E44: 61.89 | F44: 30.95 | G44: 76.6 | H44: 38.3 | I44: 69.25
A45: 杨燕琼 | B45: 三穗县长吉镇人力资源和社会保障服务中心 | C45: 管理岗位 | D45: 08014 | E45: 58.95 | F45: 29.48 | G45: 73.8 | H45: 36.9 | I45: 66.38
A46: 孙成龙 | B46: 三穗县长吉镇国土资源和规划建设环保中心 | C46: 专业技术岗位 | D46: 08015 | E46: 72.34 | F46: 36.17 | G46: 82.6 | H46: 41.3 | I46: 77.47 | J46: 入围体检
A47: 欧天海 | B47: 三穗县长吉镇国土资源和规划建设环保中心 | C47: 专业技术岗位 | D47: 08015 | E47: 76.16 | F47: 38.08 | G47: 77.2 | H47: 38.6 | I47: 76.68
A48: 张俊 | B48: 三穗县长吉镇国土资源和规划建设环保中心 | C48: 专业技术岗位 | D48: 08015 | E48: 71.31 | F48: 35.66 | G48: 77.4 | H48: 38.7 | I48: 74.36
A49: 黄亚荻 | B49: 三穗县长吉镇林业站 | C49: 专业技术岗位 | D49: 08016 | E49: 63.64 | F49: 31.82 | G49: 84.6 | H49: 42.3 | I49: 74.12 | J49: 入围体检
A50: 佘乾盛 | B50: 三穗县长吉镇林业站 | C50: 专业技术岗位 | D50: 08016 | E50: 61.28 | F50: 30.64 | G50: 82.8 | H50: 41.4 | I50: 72.04
A51: 龙登萍 | B51: 三穗县长吉镇林业站 | C51: 专业技术岗位 | D51: 08016 | E51: 60.7 | F51: 30.35 | G51: 78.2 | H51: 39.1 | I51: 69.45
A52: 肖佳丽 | B52: 三穗县桐林镇财政所 | C52: 管理岗位 | D52: 08017 | E52: 74.68 | F52: 37.34 | G52: 82.4 | H52: 41.2 | I52: 78.54 | J52: 入围体检
A53: 张琳 | B53: 三穗县桐林镇财政所 | C53: 管理岗位 | D53: 08017 | E53: 70.05 | F53: 35.03 | G53: 85.4 | H53: 42.7 | I53: 77.73
A54: 罗璇 | B54: 三穗县桐林镇财政所 | C54: 管理岗位 | D54: 08017 | E54: 70.94 | F54: 35.47 | G54: 80 | H54: 40 | I54: 75.47
A55: 杨仁梅 | B55: 三穗县桐林镇应急管理站 | C55: 管理岗位 | D55: 08018 | E55: 77.35 | F55: 38.68 | G55: 80.6 | H55: 40.3 | I55: 78.98 | J55: 入围体检
A56: 吴勇谋 | B56: 三穗县桐林镇应急管理站 | C56: 管理岗位 | D56: 08018 | E56: 76.04 | F56: 38.02 | G56: 79.4 | H56: 39.7 | I56: 77.72
A57: 唐元平 | B57: 三穗县桐林镇应急管理站 | C57: 管理岗位 | D57: 08018 | E57: 73.68 | F57: 36.84 | G57: 79.8 | H57: 39.9 | I57: 76.74
A58: 罗凡 | B58: 三穗县桐林镇计划生育协会 | C58: 管理岗位 | D58: 08019 | E58: 76.22 | F58: 38.11 | G58: 80.8 | H58: 40.4 | I58: 78.51 | J58: 入围体检
A59: 粟倩 | B59: 三穗县桐林镇计划生育协会 | C59: 管理岗位 | D59: 08019 | E59: 71.44 | F59: 35.72 | G59: 84.6 | H59: 42.3 | I59: 78.02
A60: 白旭 | B60: 三穗县桐林镇计划生育协会 | C60: 管理岗位 | D60: 08019 | E60: 69.67 | F60: 34.84 | G60: 74.8 | H60: 37.4 | I60: 72.24
A61: 杨坤柳 | B61: 三穗县八弓镇国土资源和规划建设环保中心 | C61: 专业技术岗位 | D61: 08020 | E61: 71.11 | F61: 35.56 | G61: 78.4 | H61: 39.2 | I61: 74.76 | J61: 入围体检
A62: 刘玮 | B62: 三穗县八弓镇国土资源和规划建设环保中心 | C62: 专业技术岗位 | D62: 08020 | E62: 70.28 | F62: 35.14 | G62: 78 | H62: 39 | I62: 74.14
A63: 邹杨峥嵘 | B63: 三穗县八弓镇国土资源和规划建设环保中心 | C63: 专业技术岗位 | D63: 08020 | E63: 71.24 | F63: 35.62 | G63: 77 | H63: 38.5 | I63: 74.12
A64: 蒲定东 | B64: 三穗县瓦寨镇国土资源和规划建设环保中心 | C64: 管理岗位 | D64: 08021 | E64: 72.49 | F64: 36.25 | G64: 81 | H64: 40.5 | I64: 76.75 | J64: 入围体检
A65: 邓宗宁 | B65: 三穗县瓦寨镇国土资源和规划建设环保中心 | C65: 管理岗位 | D65: 08021 | E65: 70.01 | F65: 35.01 | G65: 79.2 | H65: 39.6 | I65: 74.61
A66: 潘存根 | B66: 三穗县瓦寨镇国土资源和规划建设环保中心 | C66: 管理岗位 | D66: 08021 | E66: 67.95 | F66: 33.98 | G66: 78.4 | H66: 39.2 | I66: 73.18
A67: 田景雪 | B67: 三穗县疾病预防控制中心 | C67: 专业技术岗位 | D67: 08022 | E67: 70.14 | F67: 35.07 | G67: 76.4 | H67: 38.2 | I67: 73.27 | J67: 入围体检
A68: 钟钰婷 | B68: 三穗县疾病预防控制中心 | C68: 专业技术岗位 | D68: 08022 | E68: 59.27 | F68: 29.64 | G68: 82.2 | H68: 41.1 | I68: =H68+F68 -> 70.74
A69: 谭中凤 | B69: 三穗县疾病预防控制中心 | C69: 专业技术岗位 | D69: 08022 | E69: 60.4 | F69: 30.20 | G69: 77.4 | H69: 38.7 | I69: 68.90
A70: 万代莲 | B70: 三穗县民族高级中学 | C70: 专业技术岗位 | D70: 08023 | E70: 直接入围面试 | G70: 73.4 | H70: 73.4 | I70: 73.4 | J70: 入围体检
A71: 王艳春 | B71: 三穗县民族高级中学 | C71: 专业技术岗位 | D71: 08024 | E71: 78.46 | F71: =E71*0.5 -> 39.23 | G71: 83.8 | H71: =G71*0.5 -> 41.9 | I71: 81.13 | J71: 入围体检
A72: 余庭 | B72: 三穗县民族高级中学 | C72: 专业技术岗位 | D72: 08024 | E72: 75.55 | F72: 37.78 | G72: 80.4 | H72: 40.2 | I72: =H72+F72 -> 77.98
A73: 李玉雄 | B73: 三穗县民族高级中学 | C73: 专业技术岗位 | D73: 08024 | E73: 73.14 | F73: 36.57 | G73: 80.6 | H73: 40.3 | I73: 76.87
A74: 张锦芝 | B74: 三穗县民族高级中学 | C74: 专业技术岗位 | D74: 08025 | E74: 73.42 | F74: 36.71 | G74: 82.4 | H74: 41.2 | I74: 77.91 | J74: 入围体检
A75: 彭图德 | B75: 三穗县民族高级中学 | C75: 专业技术岗位 | D75: 08025 | E75: 67.73 | F75: 33.87 | G75: 82 | H75: 41 | I75: 74.87
A76: 张绪康 | B76: 三穗县民族高级中学 | C76: 专业技术岗位 | D76: 08025 | E76: 64.6 | F76: 32.30 | G76: 77.4 | H76: 38.7 | I76: 71.00
A77: 冉景林 | B77: 三穗县民族高级中学 | C77: 专业技术岗位 | D77: 08026 | E77: 78.96 | F77: 39.48 | G77: 82.4 | H77: 41.2 | I77: 80.68 | J77: 入围体检
A78: 韩克铜 | B78: 三穗县民族高级中学 | C78: 专业技术岗位 | D78: 08026 | E78: 71.54 | F78: 35.77 | G78: 80.6 | H78: 40.3 | I78: 76.07
A79: 陈宇 | B79: 三穗县民族高级中学 | C79: 专业技术岗位 | D79: 08026 | E79: 71.12 | F79: 35.56 | G79: 76.2 | H79: 38.1 | I79: 73.66
A80: 吴远春 | B80: 三穗县民族高级中学 | C80: 专业技术岗位 | D80: 08027 | E80: 78.81 | F80: 39.41 | G80: 78.8 | H80: 39.4 | I80: 78.81 | J80: 入围体检
A81: 杨崇乐 | B81: 三穗县民族高级中学 | C81: 专业技术岗位 | D81: 08027 | E81: 74.33 | F81: 37.17 | G81: 82.6 | H81: 41.3 | I81: 78.47
A82: 杨凯 | B82: 三穗县民族高级中学 | C82: 专业技术岗位 | D82: 08027 | E82: 74.68 | F82: 37.34 | G82: 80.2 | H82: 40.1 | I82: 77.44
A83: 黄琼琼 | B83: 三穗县民族高级中学 | C83: 专业技术岗位 | D83: 08028 | E83: 80.26 | F83: 40.13 | G83: 82.8 | H83: 41.4 | I83: 81.53 | J83: 入围体检
A84: 路丽铃 | B84: 三穗县民族高级中学 | C84: 专业技术岗位 | D84: 08028 | E84: 80.76 | F84: 40.38 | G84: 81 | H84: 40.5 | I84: 80.88
A85: 曾双 | B85: 三穗县民族高级中学 | C85: 专业技术岗位 | D85: 08028 | E85: 80.58 | F85: 40.29 | G85: 77.2 | H85: 38.6 | I85: 78.89
A86: 杨胜来 | B86: 三穗县民族高级中学 | C86: 专业技术岗位 | D86: 08029 | E86: 76.18 | F86: 38.09 | G86: 83 | H86: 41.5 | I86: 79.59 | J86: 入围体检
A87: 姜晓雨 | B87: 三穗县民族高级中学 | C87: 专业技术岗位 | D87: 08029 | E87: 76.3 | F87: 38.15 | G87: 78.6 | H87: 39.3 | I87: 77.45
A88: 王海归 | B88: 三穗县民族高级中学 | C88: 专业技术岗位 | D88: 08029 | E88: 75.82 | F88: 37.91 | G88: 74.2 | H88: 37.1 | I88: 75.01
A89: 罗霄翥 | B89: 三穗县民族高级中学 | C89: 专业技术岗位 | D89: 08030 | E89: 76.28 | F89: 38.14 | G89: 83.4 | H89: 41.7 | I89: 79.84 | J89: 入围体检
A90: 杨雪萍 | B90: 三穗县民族高级中学 | C90: 专业技术岗位 | D90: 08030 | E90: 76.18 | F90: 38.09 | G90: 79.4 | H90: 39.7 | I90: 77.79
A91: 龙朵朵 | B91: 三穗县民族高级中学 | C91: 专业技术岗位 | D91: 08030 | E91: 78.14 | F91: 39.07 | G91: 缺考 | H91: 缺考 | I91: 39.07
A92: 雷雨琴 | B92: 三穗县民族高级中学 | C92: 专业技术岗位 | D92: 08031 | E92: 81.25 | F92: 40.63 | G92: 84.6 | H92: =G92*0.5 -> 42.3 | I92: =H92+F92 -> 82.93 | J92: 入围体检
A93: 胡正龙 | B93: 三穗县民族高级中学 | C93: 专业技术岗位 | D93: 08031 | E93: 81.96 | F93: 40.98 | G93: 83.8 | H93: =G93*0.5 -> 41.9 | I93: =H93+F93 -> 82.88 | J93: 入围体检
A94: 吴廷艳 | B94: 三穗县民族高级中学 | C94: 专业技术岗位 | D94: 08031 | E94: 79.08 | F94: 39.54 | G94: 84.4 | H94: =G94*0.5 -> 42.2 | I94: =H94+F94 -> 81.74
A95: 段尹 | B95: 三穗县民族高级中学 | C95: 专业技术岗位 | D95: 08031 | E95: 80.32 | F95: 40.16 | G95: 77.8 | H95: =G95*0.5 -> 38.9 | I95: =H95+F95 -> 79.06
A96: 王怡 | B96: 三穗县民族高级中学 | C96: 专业技术岗位 | D96: 08031 | E96: 79.02 | F96: 39.51 | G96: 79 | H96: 39.5 | I96: 79.01
A97: 彭彰娅 | B97: 三穗县民族高级中学 | C97: 专业技术岗位 | D97: 08031 | E97: 78.98 | F97: 39.49 | G97: 71.6 | H97: 35.8 | I97: 75.29
A98: 杨长军 | B98: 三穗县民族高级中学 | C98: 专业技术岗位 | D98: 08032 | E98: 77.46 | F98: 38.73 | G98: 83.4 | H98: 41.7 | I98: 80.43 | J98: 入围体检
A99: 杨通祥 | B99: 三穗县民族高级中学 | C99: 专业技术岗位 | D99: 08032 | E99: 80.32 | F99: 40.16 | G99: 80.2 | H99: 40.1 | I99: 80.26
A100: 田聪 | B100: 三穗县民族高级中学 | C100: 专业技术岗位 | D100: 08032 | E100: 75.05 | F100: 37.53 | G100: 74.6 | H100: 37.3 | I100: 74.83
A101: 王六一 | B101: 三穗县第二中学 | C101: 专业技术岗位 | D101: 08033 | E101: 77.06 | F101: 38.53 | G101: 84.2 | H101: 42.1 | I101: 80.63 | J101: 入围体检
A102: 刘运平 | B102: 三穗县第二中学 | C102: 专业技术岗位 | D102: 08033 | E102: 74.7 | F102: 37.35 | G102: 83.4 | H102: 41.7 | I102: 79.05
A103: 王颖 | B103: 三穗县第二中学 | C103: 专业技术岗位 | D103: 08033 | E103: 71.82 | F103: 35.91 | G103: 79.6 | H103: 39.8 | I103: 75.71
A104: 李芳 | B104: 三穗县第二中学 | C104: 专业技术岗位 | D104: 08034 | E104: 78.14 | F104: 39.07 | G104: 76.4 | H104: 38.2 | I104: 77.27 | J104: 入围体检
A105: 杨阿倩 | B105: 三穗县第二中学 | C105: 专业技术岗位 | D105: 08034 | E105: 62.02 | F105: 31.01 | G105: 85.2 | H105: 42.6 | I105: 73.61
A106: 龙章远 | B106: 三穗县第二中学 | C106: 专业技术岗位 | D106: 08034 | E106: 66.2 | F106: 33.10 | G106: 76.6 | H106: 38.3 | I106: 71.40
A107: 潘盛花 | B107: 三穗县第二中学 | C107: 专业技术岗位 | D107: 08035 | E107: 77.28 | F107: 38.64 | G107: 80.2 | H107: 40.1 | I107: 78.74 | J107: 入围体检
A108: 邓思婷 | B108: 三穗县第二中学 | C108: 专业技术岗位 | D108: 08035 | E108: 75.58 | F108: 37.79 | G108: 78.6 | H108: 39.3 | I108: 77.09
A109: 汪勤芳 | B109: 三穗县第二中学 | C109: 专业技术岗位 | D109: 08035 | E109: 73.62 | F109: 36.81 | G109: 80.4 | H109: 40.2 | I109: 77.01
